[Event "Titled Tuesday Blitz April 4 Late 2023"]
[White "Gerbelli Neto, Eduardo"]
[Black "Klukin, Kirill"]
[WhiteFideId "2103281"]
[BlackFideId "24199273"]
[WhiteElo "2178"]
[BlackElo "2344"]
[Result "0-1"]
[Round "01"]
[TimeControl "180+2"]
[Date "2023.04.04"]
[WhiteClock "0:00:07"]
[BlackClock "0:00:37"]

1. e4 {[%clk 0:02:57]}  c5 {[%clk 0:02:59]} 2. Nc3 {[%clk 0:02:56]}  e6 {[%clk 0:02:59]} 3. f4 {[%clk 0:02:55]}  Nc6 {[%clk 0:02:58]} 4. Nf3 {[%clk 0:02:56]}  g6 {[%clk 0:02:57]} 5. Bc4 {[%clk 0:02:55]}  Bg7 {[%clk 0:02:58]} 6. f5 {[%clk 0:02:54]}  Nge7 {[%clk 0:02:57]} 7. fxe6 {[%clk 0:02:54]}  dxe6 {[%clk 0:02:58]} 8. d3 {[%clk 0:02:55]}  O-O {[%clk 0:02:57]} 9. O-O {[%clk 0:02:56]}  Na5 {[%clk 0:02:55]} 10. Qe1 {[%clk 0:02:55]}  Nxc4 {[%clk 0:02:55]} 11. dxc4 {[%clk 0:02:56]}  Nc6 {[%clk 0:02:55]} 12. Bg5 {[%clk 0:02:54]}  Qb6 {[%clk 0:02:45]} 13. b3 {[%clk 0:02:53]}  Nd4 {[%clk 0:02:44]} 14. Nxd4 {[%clk 0:02:47]}  cxd4 {[%clk 0:02:43]} 15. Na4 {[%clk 0:02:48]}  Qc7 {[%clk 0:02:41]} 16. Bf4 {[%clk 0:02:41]}  e5 {[%clk 0:02:38]} 17. Bd2 {[%clk 0:02:39]}  b5 {[%clk 0:02:37]} 18. Ba5 {[%clk 0:02:27]}  Qc6 {[%clk 0:02:33]} 19. Nb2 {[%clk 0:02:16]}  bxc4 {[%clk 0:02:32]} 20. Nxc4 {[%clk 0:02:14]}  Ba6 {[%clk 0:02:33]} 21. Bb4 {[%clk 0:02:05]}  Bxc4 {[%clk 0:02:29]} 22. bxc4 {[%clk 0:02:00]}  Rfc8 {[%clk 0:02:29]} 23. c5 {[%clk 0:01:51]}  Bf8 {[%clk 0:02:29]} 24. Qf2 {[%clk 0:01:49]}  Qe6 {[%clk 0:02:30]} 25. c3 {[%clk 0:01:36]}  Rab8 {[%clk 0:01:52]} 26. a3 {[%clk 0:01:31]}  dxc3 {[%clk 0:01:37]} 27. Rac1 {[%clk 0:01:30]}  a5 {[%clk 0:01:37]} 28. Rxc3 {[%clk 0:01:07]}  axb4 {[%clk 0:01:21]} 29. axb4 {[%clk 0:01:08]}  Rxb4 {[%clk 0:01:21]} 30. c6 {[%clk 0:01:08]}  Rxe4 {[%clk 0:01:18]} 31. c7 {[%clk 0:00:53]}  Rf4 {[%clk 0:00:56]} 32. Qa7 {[%clk 0:00:44]}  Bd6 {[%clk 0:00:51]} 33. Rfc1 {[%clk 0:00:34]}  e4 {[%clk 0:00:45]} 34. Qb7 {[%clk 0:00:19]}  e3 {[%clk 0:00:44]} 35. Re1 {[%clk 0:00:17]}  e2 {[%clk 0:00:43]} 36. Rxe2 {[%clk 0:00:07]}  Qxe2 {[%clk 0:00:37]} 37. Qxc8+ {[%clk 0:00:07]}  Kg7 {[%clk 0:00:37]} 38. g3 {[%clk 0:00:07]}  Rf1# {[%clk 0:00:37]} 0-1


[Site "https://www.chess.com"]

[Event "Titled Tuesday Blitz April 4 Late 2023"]
[White "Hansen, Sune Berg"]
[Black "Can, Melih Kaan"]
[WhiteFideId "1400266"]
[BlackFideId "6317383"]
[WhiteElo "2713"]
[BlackElo "2010"]
[Result "1-0"]
[Round "01"]
[TimeControl "180+2"]
[Date "2023.04.04"]
[WhiteClock "0:02:04"]
[BlackClock "0:00:03"]

1. Nf3 {[%clk 0:02:58]}  Nf6 {[%clk 0:02:55]} 2. g3 {[%clk 0:02:59]}  d5 {[%clk 0:02:52]} 3. Bg2 {[%clk 0:02:58]}  c6 {[%clk 0:02:50]} 4. O-O {[%clk 0:02:58]}  Bf5 {[%clk 0:02:50]} 5. c4 {[%clk 0:02:57]}  e6 {[%clk 0:02:51]} 6. Qb3 {[%clk 0:02:56]}  Qb6 {[%clk 0:02:40]} 7. cxd5 {[%clk 0:02:55]}  Qxb3 {[%clk 0:02:35]} 8. axb3 {[%clk 0:02:54]}  exd5 {[%clk 0:02:36]} 9. d3 {[%clk 0:02:54]}  Nbd7 {[%clk 0:02:31]} 10. Bd2 {[%clk 0:02:54]}  Bd6 {[%clk 0:02:25]} 11. Bc3 {[%clk 0:02:53]}  O-O {[%clk 0:02:25]} 12. Nbd2 {[%clk 0:02:53]}  Rfe8 {[%clk 0:02:26]} 13. Rfe1 {[%clk 0:02:53]}  Nc5 {[%clk 0:02:16]} 14. b4 {[%clk 0:02:51]}  Ncd7 {[%clk 0:02:05]} 15. Nb3 {[%clk 0:02:51]}  Ne5 {[%clk 0:01:28]} 16. Nfd4 {[%clk 0:02:49]}  Bd7 {[%clk 0:01:23]} 17. Nc5 {[%clk 0:02:48]}  Bxc5 {[%clk 0:00:42]} 18. bxc5 {[%clk 0:02:47]}  a6 {[%clk 0:00:40]} 19. b4 {[%clk 0:02:44]}  Bg4 {[%clk 0:00:39]} 20. h3 {[%clk 0:02:43]}  Bh5 {[%clk 0:00:37]} 21. Nf5 {[%clk 0:02:38]}  Rab8 {[%clk 0:00:23]} 22. f4 {[%clk 0:02:35]}  Ned7 {[%clk 0:00:18]} 23. Nd6 {[%clk 0:02:31]}  Rxe2 {[%clk 0:00:18]} 24. g4 {[%clk 0:02:28]}  Rxe1+ {[%clk 0:00:14]} 25. Rxe1 {[%clk 0:02:29]}  Nxg4 {[%clk 0:00:14]} 26. hxg4 {[%clk 0:02:26]}  Bxg4 {[%clk 0:00:15]} 27. Re7 {[%clk 0:02:20]}  f6 {[%clk 0:00:04]} 28. f5 {[%clk 0:02:14]}  Ne5 {[%clk 0:00:03]} 29. Bxe5 {[%clk 0:02:13]}  fxe5 {[%clk 0:00:03]} 30. Rxe5 {[%clk 0:02:13]}  Kf8 {[%clk 0:00:02]} 31. Kf2 {[%clk 0:02:08]}  b6 {[%clk 0:00:03]} 32. Kg3 {[%clk 0:02:08]}  h5 {[%clk 0:00:02]} 33. cxb6 {[%clk 0:02:05]}  Rxb6 {[%clk 0:00:03]} 34. Re8# {[%clk 0:02:04]} 1-0


[Site "https://www.chess.com"]

[Event "Titled Tuesday Blitz April 4 Late 2023"]
[White "Perez Rodriguez, Jennifer"]
[Black "Iliaguev, Nisim"]
[WhiteFideId "3507831"]
[BlackFideId "2817276"]
[WhiteElo "2116"]
[BlackElo "2241"]
[Result "0-1"]
[Round "01"]
[TimeControl "180+2"]
[Date "2023.04.04"]
[WhiteClock "0:00:20"]
[BlackClock "0:01:38"]

1. e4 {[%clk 0:02:59]}  c6 {[%clk 0:02:51]} 2. Nc3 {[%clk 0:02:51]}  d5 {[%clk 0:02:49]} 3. Nf3 {[%clk 0:02:51]}  Bg4 {[%clk 0:02:50]} 4. h3 {[%clk 0:02:51]}  Bxf3 {[%clk 0:02:50]} 5. Qxf3 {[%clk 0:02:51]}  e6 {[%clk 0:02:51]} 6. d4 {[%clk 0:02:51]}  Nf6 {[%clk 0:02:51]} 7. e5 {[%clk 0:02:50]}  Nfd7 {[%clk 0:02:51]} 8. Qg3 {[%clk 0:02:49]}  c5 {[%clk 0:02:50]} 9. Be3 {[%clk 0:02:44]}  cxd4 {[%clk 0:02:50]} 10. Bxd4 {[%clk 0:02:44]}  Nc6 {[%clk 0:02:51]} 11. O-O-O {[%clk 0:02:31]}  a6 {[%clk 0:02:51]} 12. f4 {[%clk 0:02:26]}  g6 {[%clk 0:02:51]} 13. Be3 {[%clk 0:02:23]}  Rc8 {[%clk 0:02:50]} 14. Kb1 {[%clk 0:02:22]}  Qa5 {[%clk 0:02:49]} 15. Ne2 {[%clk 0:01:58]}  Bc5 {[%clk 0:02:47]} 16. Nc1 {[%clk 0:01:55]}  Qb6 {[%clk 0:02:40]} 17. Bxc5 {[%clk 0:01:52]}  Nxc5 {[%clk 0:02:41]} 18. Nb3 {[%clk 0:01:50]}  Ne4 {[%clk 0:02:39]} 19. Qf3 {[%clk 0:01:44]}  Nf2 {[%clk 0:02:39]} 20. Bd3 {[%clk 0:01:42]}  Nxh1 {[%clk 0:02:38]} 21. Rxh1 {[%clk 0:01:42]}  O-O {[%clk 0:02:36]} 22. g4 {[%clk 0:01:41]}  Nb4 {[%clk 0:02:30]} 23. f5 {[%clk 0:01:39]}  Nxd3 {[%clk 0:02:29]} 24. Qxd3 {[%clk 0:01:38]}  Qf2 {[%clk 0:02:15]} 25. Rf1 {[%clk 0:01:30]}  Qh4 {[%clk 0:02:13]} 26. f6 {[%clk 0:01:30]}  Qg5 {[%clk 0:02:08]} 27. Qg3 {[%clk 0:01:17]}  Rc4 {[%clk 0:02:06]} 28. c3 {[%clk 0:01:13]}  b5 {[%clk 0:02:03]} 29. Nd4 {[%clk 0:01:12]}  b4 {[%clk 0:02:01]} 30. h4 {[%clk 0:01:13]}  Qd2 {[%clk 0:02:00]} 31. Nb3 {[%clk 0:01:08]}  Qe2 {[%clk 0:01:56]} 32. Rg1 {[%clk 0:00:59]}  bxc3 {[%clk 0:01:52]} 33. bxc3 {[%clk 0:00:58]}  Rfc8 {[%clk 0:01:49]} 34. Rc1 {[%clk 0:00:50]}  Qxg4 {[%clk 0:01:47]} 35. Qe3 {[%clk 0:00:49]}  Qf4 {[%clk 0:01:47]} 36. Qe2 {[%clk 0:00:30]}  h5 {[%clk 0:01:41]} 37. Kb2 {[%clk 0:00:27]}  d4 {[%clk 0:01:38]} 38. Rf1 {[%clk 0:00:21]}  dxc3+ {[%clk 0:01:38]} 39. Kc2 {[%clk 0:00:21]}  Qe4+ {[%clk 0:01:37]} 40. Qxe4 {[%clk 0:00:20]}  Rxe4 {[%clk 0:01:38]} 0-1


[Site "https://www.chess.com"]

[Event "Titled Tuesday Blitz April 4 Late 2023"]
[White "Senft, Sean"]
[Black "Manzone, Alessandro"]
[WhiteFideId "2044960"]
[BlackFideId "112488"]
[WhiteElo "1989"]
[BlackElo "2255"]
[Result "1-0"]
[Round "01"]
[TimeControl "180+2"]
[Date "2023.04.04"]
[WhiteClock "0:00:07"]
[BlackClock "0:00:09"]

1. d4 {[%clk 0:02:57]}  Nf6 {[%clk 0:03:00]} 2. c4 {[%clk 0:02:57]}  e6 {[%clk 0:03:00]} 3. Nc3 {[%clk 0:02:54]}  Bb4 {[%clk 0:03:00]} 4. Nf3 {[%clk 0:02:54]}  O-O {[%clk 0:02:59]} 5. Bg5 {[%clk 0:02:51]}  d5 {[%clk 0:02:56]} 6. e3 {[%clk 0:02:51]}  h6 {[%clk 0:02:53]} 7. Bh4 {[%clk 0:02:51]}  c5 {[%clk 0:02:51]} 8. cxd5 {[%clk 0:02:49]}  exd5 {[%clk 0:02:50]} 9. Bd3 {[%clk 0:02:49]}  Nc6 {[%clk 0:02:44]} 10. O-O {[%clk 0:02:48]}  cxd4 {[%clk 0:02:39]} 11. exd4 {[%clk 0:02:46]}  Be7 {[%clk 0:02:33]} 12. Re1 {[%clk 0:02:44]}  Be6 {[%clk 0:02:30]} 13. Rc1 {[%clk 0:02:40]}  Re8 {[%clk 0:02:29]} 14. Bb1 {[%clk 0:02:35]}  Ne4 {[%clk 0:01:44]} 15. Bxe7 {[%clk 0:02:04]}  Rxe7 {[%clk 0:01:44]} 16. Nxe4 {[%clk 0:01:58]}  dxe4 {[%clk 0:01:45]} 17. Bxe4 {[%clk 0:01:38]}  Bxa2 {[%clk 0:01:39]} 18. d5 {[%clk 0:01:06]}  Ne5 {[%clk 0:01:27]} 19. Nxe5 {[%clk 0:00:53]}  Rxe5 {[%clk 0:01:27]} 20. Bh7+ {[%clk 0:00:52]}  Kxh7 {[%clk 0:01:28]} 21. Rxe5 {[%clk 0:00:53]}  Qf6 {[%clk 0:01:24]} 22. Qd3+ {[%clk 0:00:50]}  g6 {[%clk 0:01:23]} 23. Rce1 {[%clk 0:00:49]}  Rd8 {[%clk 0:01:21]} 24. h3 {[%clk 0:00:30]}  Rd7 {[%clk 0:01:21]} 25. b3 {[%clk 0:00:30]}  Qd6 {[%clk 0:01:09]} 26. R5e2 {[%clk 0:00:28]}  Qa3 {[%clk 0:01:02]} 27. Ra1 {[%clk 0:00:27]}  Qxb3 {[%clk 0:01:00]} 28. Qe4 {[%clk 0:00:13]}  f5 {[%clk 0:00:32]} 29. Qe6 {[%clk 0:00:08]}  Qxd5 {[%clk 0:00:30]} 30. Raxa2 {[%clk 0:00:06]}  Qd1+ {[%clk 0:00:24]} 31. Re1 {[%clk 0:00:06]}  Qd4 {[%clk 0:00:21]} 32. Rae2 {[%clk 0:00:06]}  Rg7 {[%clk 0:00:16]} 33. Qe8 {[%clk 0:00:06]}  h5 {[%clk 0:00:12]} 34. Re7 {[%clk 0:00:06]}  Rxe7 {[%clk 0:00:11]} 35. Qxe7+ {[%clk 0:00:04]}  Kh6 {[%clk 0:00:11]} 36. h4 {[%clk 0:00:05]}  Qc3 {[%clk 0:00:09]} 37. Qf8+ {[%clk 0:00:05]}  Qg7 {[%clk 0:00:07]} 38. Qxg7+ {[%clk 0:00:06]}  Kxg7 {[%clk 0:00:08]} 39. Re7+ {[%clk 0:00:06]}  Kf6 {[%clk 0:00:09]} 40. Rxb7 {[%clk 0:00:07]} 1-0


[Site "https://www.chess.com"]

[Event "Titled Tuesday Blitz April 4 Late 2023"]
[White "Mindlin, Alon"]
[Black "Skaric, Djuro"]
[WhiteFideId "2800071"]
[BlackFideId "934569"]
[WhiteElo "2430"]
[BlackElo "2282"]
[Result "1-0"]
[Round "01"]
[TimeControl "180+2"]
[Date "2023.04.04"]
[WhiteClock "0:01:28"]
[BlackClock "0:01:09"]

1. d4 {[%clk 0:03:00]}  d6 {[%clk 0:02:59]} 2. e4 {[%clk 0:03:00]}  g6 {[%clk 0:03:00]} 3. Nc3 {[%clk 0:03:00]}  Bg7 {[%clk 0:03:00]} 4. Bg5 {[%clk 0:03:00]}  Nf6 {[%clk 0:03:01]} 5. Qd2 {[%clk 0:02:57]}  h6 {[%clk 0:02:56]} 6. Bh4 {[%clk 0:02:56]}  Nc6 {[%clk 0:02:56]} 7. O-O-O {[%clk 0:02:51]}  O-O {[%clk 0:02:51]} 8. f3 {[%clk 0:02:42]}  e5 {[%clk 0:02:49]} 9. Nge2 {[%clk 0:02:37]}  a6 {[%clk 0:02:48]} 10. Nd5 {[%clk 0:02:31]}  exd4 {[%clk 0:02:45]} 11. Nxd4 {[%clk 0:02:27]}  Nxd4 {[%clk 0:02:39]} 12. Nxf6+ {[%clk 0:02:22]}  Bxf6 {[%clk 0:02:37]} 13. Bxf6 {[%clk 0:02:22]}  Qxf6 {[%clk 0:02:35]} 14. Qxd4 {[%clk 0:02:21]}  Qxd4 {[%clk 0:02:35]} 15. Rxd4 {[%clk 0:02:22]}  Bd7 {[%clk 0:02:30]} 16. e5 {[%clk 0:02:18]}  Rfe8 {[%clk 0:02:22]} 17. exd6 {[%clk 0:02:18]}  c5 {[%clk 0:02:21]} 18. Rd1 {[%clk 0:02:16]}  b5 {[%clk 0:02:20]} 19. Bd3 {[%clk 0:02:06]}  Rab8 {[%clk 0:02:18]} 20. Be4 {[%clk 0:02:03]}  Rb6 {[%clk 0:02:16]} 21. Rd5 {[%clk 0:01:56]}  c4 {[%clk 0:02:10]} 22. Rhd1 {[%clk 0:01:55]}  Re6 {[%clk 0:02:07]} 23. g4 {[%clk 0:01:48]}  Kg7 {[%clk 0:02:03]} 24. c3 {[%clk 0:01:47]}  Kf6 {[%clk 0:01:57]} 25. h4 {[%clk 0:01:45]}  Re5 {[%clk 0:01:54]} 26. R5d4 {[%clk 0:01:40]}  g5 {[%clk 0:01:51]} 27. hxg5+ {[%clk 0:01:40]}  hxg5 {[%clk 0:01:50]} 28. Rh1 {[%clk 0:01:39]}  Kg7 {[%clk 0:01:47]} 29. Rh7+ {[%clk 0:01:33]}  Kf6 {[%clk 0:01:45]} 30. Rh8 {[%clk 0:01:33]}  Rxe4 {[%clk 0:01:11]} 31. Rxe4 {[%clk 0:01:29]}  Rxd6 {[%clk 0:01:09]} 32. Rh6+ {[%clk 0:01:28]} 1-0


[Site "https://www.chess.com"]

[Event "Titled Tuesday Blitz April 4 Late 2023"]
[White "Garrido, Denis"]
[Black "Beerdsen, Thomas"]
[WhiteFideId "601217"]
[BlackFideId "1030108"]
[WhiteElo "2367"]
[BlackElo "2547"]
[Result "0-1"]
[Round "01"]
[TimeControl "180+2"]
[Date "2023.04.04"]
[WhiteClock "0:01:00"]
[BlackClock "0:02:13"]

1. e4 {[%clk 0:03:00]}  c5 {[%clk 0:02:59]} 2. Nf3 {[%clk 0:03:01]}  Nc6 {[%clk 0:02:59]} 3. Bc4 {[%clk 0:03:00]}  Na5 {[%clk 0:02:58]} 4. Be2 {[%clk 0:02:57]}  e6 {[%clk 0:02:57]} 5. d4 {[%clk 0:02:56]}  cxd4 {[%clk 0:02:57]} 6. Nxd4 {[%clk 0:02:57]}  Nf6 {[%clk 0:02:56]} 7. Nc3 {[%clk 0:02:57]}  Bb4 {[%clk 0:02:55]} 8. Bf3 {[%clk 0:02:50]}  Bxc3+ {[%clk 0:02:46]} 9. bxc3 {[%clk 0:02:50]}  d6 {[%clk 0:02:46]} 10. O-O {[%clk 0:02:50]}  a6 {[%clk 0:02:44]} 11. Qe2 {[%clk 0:02:42]}  O-O {[%clk 0:02:43]} 12. Ba3 {[%clk 0:02:36]}  Qc7 {[%clk 0:02:28]} 13. Rad1 {[%clk 0:02:02]}  Nc4 {[%clk 0:02:26]} 14. Bc1 {[%clk 0:02:00]}  Ne5 {[%clk 0:02:19]} 15. Bg5 {[%clk 0:01:57]}  Nfd7 {[%clk 0:02:18]} 16. Bd2 {[%clk 0:01:48]}  b5 {[%clk 0:02:18]} 17. g3 {[%clk 0:01:46]}  Nxf3+ {[%clk 0:02:17]} 18. Nxf3 {[%clk 0:01:45]}  Bb7 {[%clk 0:02:17]} 19. Rfe1 {[%clk 0:01:38]}  Rac8 {[%clk 0:02:15]} 20. Bf4 {[%clk 0:01:24]}  e5 {[%clk 0:02:15]} 21. Bd2 {[%clk 0:01:18]}  Nf6 {[%clk 0:02:14]} 22. Bc1 {[%clk 0:01:03]}  Nxe4 {[%clk 0:02:13]} 23. Qxe4 {[%clk 0:00:59]}  Bxe4 {[%clk 0:02:12]} 24. Rxe4 {[%clk 0:01:00]}  Qxc3 {[%clk 0:02:13]} 0-1


[Site "https://www.chess.com"]

[Event "Titled Tuesday Blitz April 4 Late 2023"]
[White "Matinian, Nikita"]
[Black "Peatman, Carter"]
[WhiteFideId "24129100"]
[BlackFideId "2096480"]
[WhiteElo "2422"]
[BlackElo "2003"]
[Result "1-0"]
[Round "01"]
[TimeControl "180+2"]
[Date "2023.04.04"]
[WhiteClock "0:00:51"]
[BlackClock "0:00:01"]

1. e4 {[%clk 0:02:59]}  e5 {[%clk 0:02:58]} 2. Nf3 {[%clk 0:02:59]}  Nf6 {[%clk 0:02:59]} 3. d4 {[%clk 0:02:59]}  Nxe4 {[%clk 0:02:58]} 4. Bd3 {[%clk 0:02:58]}  Nc6 {[%clk 0:02:58]} 5. dxe5 {[%clk 0:02:57]}  Nc5 {[%clk 0:02:50]} 6. O-O {[%clk 0:02:54]}  d6 {[%clk 0:02:38]} 7. Bb5 {[%clk 0:02:39]}  Bd7 {[%clk 0:02:28]} 8. Re1 {[%clk 0:02:22]}  Ne6 {[%clk 0:02:27]} 9. exd6 {[%clk 0:02:12]}  Bxd6 {[%clk 0:02:28]} 10. Bg5 {[%clk 0:02:12]}  Be7 {[%clk 0:02:27]} 11. Bxe7 {[%clk 0:02:10]}  Qxe7 {[%clk 0:02:10]} 12. Nc3 {[%clk 0:02:10]}  Qc5 {[%clk 0:02:09]} 13. a4 {[%clk 0:01:39]}  Rd8 {[%clk 0:01:46]} 14. Ne4 {[%clk 0:01:34]}  Qh5 {[%clk 0:01:29]} 15. Nfg5 {[%clk 0:01:26]}  Qxd1 {[%clk 0:01:21]} 16. Raxd1 {[%clk 0:01:27]}  O-O {[%clk 0:01:11]} 17. Nxe6 {[%clk 0:01:27]}  Bxe6 {[%clk 0:01:01]} 18. Bxc6 {[%clk 0:01:26]}  bxc6 {[%clk 0:01:02]} 19. Nc5 {[%clk 0:01:25]}  Bf5 {[%clk 0:00:54]} 20. c3 {[%clk 0:01:20]}  Rd5 {[%clk 0:00:43]} 21. Rxd5 {[%clk 0:01:19]}  cxd5 {[%clk 0:00:44]} 22. Re5 {[%clk 0:01:19]}  Be6 {[%clk 0:00:30]} 23. Nxe6 {[%clk 0:01:17]}  fxe6 {[%clk 0:00:31]} 24. Rxe6 {[%clk 0:01:18]}  Kf7 {[%clk 0:00:28]} 25. Ra6 {[%clk 0:01:13]}  Rb8 {[%clk 0:00:23]} 26. b4 {[%clk 0:01:10]}  Rb7 {[%clk 0:00:12]} 27. Kf1 {[%clk 0:01:02]}  Ke7 {[%clk 0:00:11]} 28. Ke2 {[%clk 0:01:02]}  Kd7 {[%clk 0:00:11]} 29. b5 {[%clk 0:01:00]}  g6 {[%clk 0:00:07]} 30. Kd3 {[%clk 0:01:00]}  Rb8 {[%clk 0:00:05]} 31. Rxa7 {[%clk 0:00:59]}  Kd6 {[%clk 0:00:04]} 32. Ra6+ {[%clk 0:00:56]}  Kd7 {[%clk 0:00:04]} 33. Kd4 {[%clk 0:00:56]}  Rf8 {[%clk 0:00:04]} 34. f3 {[%clk 0:00:55]}  Re8 {[%clk 0:00:05]} 35. Kxd5 {[%clk 0:00:53]}  Re2 {[%clk 0:00:05]} 36. Ra7 {[%clk 0:00:53]}  Kd8 {[%clk 0:00:01]} 37. c4 {[%clk 0:00:51]}  Rd2+ {[%clk 0:00:01]} 38. Kc6 {[%clk 0:00:50]}  Rd6+ {[%clk 0:00:01]} 39. Kc5 {[%clk 0:00:51]}  Rd2 {[%clk 0:00:01]} 40. a5 {[%clk 0:00:51]}  Rxg2 {[%clk 0:00:01]} 41. Kc6 {[%clk 0:00:51]} 1-0


[Site "https://www.chess.com"]

[Event "Titled Tuesday Blitz April 4 Late 2023"]
[White "Lopez Del Alamo, Antonio"]
[Black "Veiga, Jose Francisco R P Neves"]
[WhiteFideId "2227339"]
[BlackFideId "1930087"]
[WhiteElo "2175"]
[BlackElo "2320"]
[Result "1-0"]
[Round "01"]
[TimeControl "180+2"]
[Date "2023.04.04"]
[WhiteClock "0:00:05"]
[BlackClock "0:00:18"]

1. e4 {[%clk 0:02:59]}  Nc6 {[%clk 0:02:27]} 2. Nc3 {[%clk 0:02:56]}  e5 {[%clk 0:02:26]} 3. Bc4 {[%clk 0:02:56]}  Nf6 {[%clk 0:02:23]} 4. d3 {[%clk 0:02:56]}  Bc5 {[%clk 0:02:23]} 5. f4 {[%clk 0:02:56]}  d5 {[%clk 0:02:22]} 6. exd5 {[%clk 0:02:40]}  Nd4 {[%clk 0:02:11]} 7. fxe5 {[%clk 0:02:26]}  Ng4 {[%clk 0:02:10]} 8. e6 {[%clk 0:02:24]}  O-O {[%clk 0:01:32]} 9. Qxg4 {[%clk 0:02:18]}  Nxc2+ {[%clk 0:01:32]} 10. Kd1 {[%clk 0:02:17]}  Nxa1 {[%clk 0:01:33]} 11. Nf3 {[%clk 0:02:11]}  b5 {[%clk 0:00:59]} 12. Bh6 {[%clk 0:01:38]}  Qf6 {[%clk 0:00:57]} 13. Bg5 {[%clk 0:01:37]}  Qg6 {[%clk 0:00:49]} 14. Ne5 {[%clk 0:01:37]}  h5 {[%clk 0:00:40]} 15. Nxg6 {[%clk 0:00:56]}  hxg4 {[%clk 0:00:39]} 16. Nxf8 {[%clk 0:00:51]}  bxc4 {[%clk 0:00:37]} 17. Nd7 {[%clk 0:00:51]}  Bxd7 {[%clk 0:00:21]} 18. exd7 {[%clk 0:00:50]}  f6 {[%clk 0:00:22]} 19. dxc4 {[%clk 0:00:33]}  fxg5 {[%clk 0:00:20]} 20. Kd2 {[%clk 0:00:31]}  Rd8 {[%clk 0:00:18]} 21. Rxa1 {[%clk 0:00:30]}  Rxd7 {[%clk 0:00:19]} 22. Re1 {[%clk 0:00:26]}  Rf7 {[%clk 0:00:18]} 23. Re2 {[%clk 0:00:24]}  Bd4 {[%clk 0:00:18]} 24. b3 {[%clk 0:00:23]}  Kh7 {[%clk 0:00:16]} 25. Ne4 {[%clk 0:00:22]}  Kg6 {[%clk 0:00:15]} 26. Kd3 {[%clk 0:00:21]}  Bg1 {[%clk 0:00:14]} 27. c5 {[%clk 0:00:19]}  Bxh2 {[%clk 0:00:13]} 28. Kc4 {[%clk 0:00:19]}  Bg1 {[%clk 0:00:12]} 29. d6 {[%clk 0:00:19]}  cxd6 {[%clk 0:00:12]} 30. cxd6 {[%clk 0:00:20]}  Bb6 {[%clk 0:00:11]} 31. Kd5 {[%clk 0:00:20]}  Rf5+ {[%clk 0:00:10]} 32. Kc6 {[%clk 0:00:19]}  Kf7 {[%clk 0:00:08]} 33. b4 {[%clk 0:00:18]}  Re5 {[%clk 0:00:07]} 34. a3 {[%clk 0:00:16]}  Ke8 {[%clk 0:00:07]} 35. Nc3 {[%clk 0:00:14]}  Rxe2 {[%clk 0:00:05]} 36. Nxe2 {[%clk 0:00:14]}  Kf7 {[%clk 0:00:05]} 37. Nc3 {[%clk 0:00:13]}  Ke6 {[%clk 0:00:05]} 38. Nd5 {[%clk 0:00:12]}  Bd8 {[%clk 0:00:05]} 39. Ne3 {[%clk 0:00:11]}  g3 {[%clk 0:00:06]} 40. Ng4 {[%clk 0:00:10]}  Kf5 {[%clk 0:00:06]} 41. Ne3+ {[%clk 0:00:11]}  Ke4 {[%clk 0:00:07]} 42. Nc4 {[%clk 0:00:09]}  Kf4 {[%clk 0:00:08]} 43. Kd7 {[%clk 0:00:09]}  Bf6 {[%clk 0:00:07]} 44. Ke6 {[%clk 0:00:07]}  Ke4 {[%clk 0:00:08]} 45. d7 {[%clk 0:00:07]}  Kd3 {[%clk 0:00:08]} 46. Ne5+ {[%clk 0:00:06]}  Ke2 {[%clk 0:00:08]} 47. Nc6 {[%clk 0:00:06]}  Kf2 {[%clk 0:00:08]} 48. Ne7 {[%clk 0:00:07]}  Kxg2 {[%clk 0:00:06]} 49. d8=Q {[%clk 0:00:07]}  Kh2 {[%clk 0:00:07]} 50. Qd2+ {[%clk 0:00:06]}  g2 {[%clk 0:00:07]} 51. Nf5 {[%clk 0:00:06]}  Kh1 {[%clk 0:00:07]} 52. Ng3+ {[%clk 0:00:05]}  Kh2 {[%clk 0:00:07]} 53. Ne4 {[%clk 0:00:05]}  Kh1 {[%clk 0:00:07]} 54. Nf2+ {[%clk 0:00:05]}  Kh2 {[%clk 0:00:07]} 55. Ng4+ {[%clk 0:00:05]}  Kg3 {[%clk 0:00:07]} 56. Qe1+ {[%clk 0:00:02]}  Kxg4 {[%clk 0:00:07]} 57. Qg1 {[%clk 0:00:03]}  Kh3 {[%clk 0:00:08]} 58. a4 {[%clk 0:00:03]}  g4 {[%clk 0:00:08]} 59. b5 {[%clk 0:00:03]}  Bg5 {[%clk 0:00:09]} 60. a5 {[%clk 0:00:03]}  Bf4 {[%clk 0:00:10]} 61. b6 {[%clk 0:00:03]}  Bh2 {[%clk 0:00:11]} 62. Qe3+ {[%clk 0:00:03]}  g3 {[%clk 0:00:11]} 63. Qg5 {[%clk 0:00:01]}  g1=Q {[%clk 0:00:11]} 64. Qh5+ {[%clk 0:00:01]}  Kg2 {[%clk 0:00:12]} 65. Qd5+ {[%clk 0:00:01]}  Kf2 {[%clk 0:00:11]} 66. bxa7 {[%clk 0:00:02]}  Kf1 {[%clk 0:00:12]} 67. a8=Q {[%clk 0:00:01]}  Qe3+ {[%clk 0:00:12]} 68. Qe4 {[%clk 0:00:01]}  Qxe4+ {[%clk 0:00:13]} 69. Qxe4 {[%clk 0:00:02]}  g2 {[%clk 0:00:13]} 70. Qf3+ {[%clk 0:00:02]}  Kg1 {[%clk 0:00:13]} 71. Kf7 {[%clk 0:00:02]}  Kh1 {[%clk 0:00:13]} 72. a6 {[%clk 0:00:01]}  Be5 {[%clk 0:00:14]} 73. a7 {[%clk 0:00:01]}  Kh2 {[%clk 0:00:15]} 74. Qxg2+ {[%clk 0:00:01]}  Kxg2 {[%clk 0:00:15]} 75. a8=Q+ {[%clk 0:00:02]}  Kh2 {[%clk 0:00:15]} 76. Qd5 {[%clk 0:00:03]}  g5 {[%clk 0:00:16]} 77. Kg6 {[%clk 0:00:04]}  g4 {[%clk 0:00:16]} 78. Qxe5+ {[%clk 0:00:04]}  g3 {[%clk 0:00:17]} 79. Kg5 {[%clk 0:00:04]}  Kh3 {[%clk 0:00:18]} 80. Kf4 {[%clk 0:00:04]}  g2 {[%clk 0:00:18]} 81. Kf3 {[%clk 0:00:04]}  g1=Q {[%clk 0:00:18]} 82. Qh5# {[%clk 0:00:05]} 1-0


[Site "https://www.chess.com"]